[Event "Titled Tuesday Blitz April 25 Late 2023"]
[White "Gonzalez, Francisco Silva"]
[Black "Rios Escobar, Adan"]
[WhiteFideId "1512285"]
[BlackFideId "3403645"]
[WhiteElo "2074"]
[BlackElo "2234"]
[Result "1-0"]
[Round "04"]
[TimeControl "180+2"]
[Date "2023.04.25"]
[WhiteClock "0:00:30"]
[BlackClock "0:00:06"]

1. d4 {[%clk 0:03:00]}  Nf6 {[%clk 0:02:57]} 2. c4 {[%clk 0:03:01]}  g6 {[%clk 0:02:58]} 3. Nc3 {[%clk 0:03:01]}  Bg7 {[%clk 0:02:58]} 4. e4 {[%clk 0:03:01]}  d6 {[%clk 0:02:59]} 5. f3 {[%clk 0:03:02]}  O-O {[%clk 0:02:59]} 6. Be3 {[%clk 0:03:03]}  a6 {[%clk 0:03:00]} 7. Qd2 {[%clk 0:03:02]}  c6 {[%clk 0:03:00]} 8. Bh6 {[%clk 0:03:02]}  b5 {[%clk 0:02:59]} 9. h4 {[%clk 0:03:01]}  bxc4 {[%clk 0:02:44]} 10. h5 {[%clk 0:03:01]}  Ra7 {[%clk 0:02:03]} 11. hxg6 {[%clk 0:02:58]}  fxg6 {[%clk 0:02:02]} 12. Bxc4+ {[%clk 0:02:57]}  d5 {[%clk 0:02:01]} 13. Bb3 {[%clk 0:02:57]}  Rf7 {[%clk 0:01:56]} 14. e5 {[%clk 0:02:54]}  Nh5 {[%clk 0:01:52]} 15. Nge2 {[%clk 0:02:47]}  Bxh6 {[%clk 0:01:20]} 16. Qxh6 {[%clk 0:02:46]}  Qf8 {[%clk 0:01:21]} 17. Qg5 {[%clk 0:02:42]}  Rf5 {[%clk 0:01:18]} 18. Qd2 {[%clk 0:02:40]}  Nf4 {[%clk 0:01:16]} 19. Nxf4 {[%clk 0:02:38]}  Rxf4 {[%clk 0:01:17]} 20. O-O-O {[%clk 0:02:37]}  Nd7 {[%clk 0:01:14]} 21. Ne2 {[%clk 0:02:26]}  Rf7 {[%clk 0:01:13]} 22. f4 {[%clk 0:02:25]}  Nb6 {[%clk 0:01:12]} 23. Rh4 {[%clk 0:02:13]}  a5 {[%clk 0:01:10]} 24. a4 {[%clk 0:02:08]}  Bf5 {[%clk 0:01:06]} 25. Rdh1 {[%clk 0:02:08]}  Nc4 {[%clk 0:01:00]} 26. Qc3 {[%clk 0:01:57]}  Be6 {[%clk 0:00:55]} 27. g4 {[%clk 0:01:54]}  Rb7 {[%clk 0:00:45]} 28. f5 {[%clk 0:01:46]}  gxf5 {[%clk 0:00:42]} 29. Nf4 {[%clk 0:01:46]}  Bc8 {[%clk 0:00:32]} 30. Bxc4 {[%clk 0:01:46]}  dxc4 {[%clk 0:00:30]} 31. Qxc4 {[%clk 0:01:45]}  e6 {[%clk 0:00:26]} 32. Nxe6 {[%clk 0:01:43]}  Bxe6 {[%clk 0:00:19]} 33. Qxe6 {[%clk 0:01:42]}  Kh8 {[%clk 0:00:15]} 34. g5 {[%clk 0:01:23]}  Rbe7 {[%clk 0:00:14]} 35. Qg6 {[%clk 0:01:20]}  Rg7 {[%clk 0:00:12]} 36. Qf6 {[%clk 0:01:16]}  Rf7 {[%clk 0:00:12]} 37. Rxh7+ {[%clk 0:01:14]}  Kg8 {[%clk 0:00:07]} 38. g6 {[%clk 0:01:06]}  Rxh7 {[%clk 0:00:01]} 39. gxh7+ {[%clk 0:01:06]}  Rxh7 {[%clk 0:00:01]} 40. Qxf8+ {[%clk 0:01:04]}  Kxf8 {[%clk 0:00:01]} 41. Rxh7 {[%clk 0:01:03]}  f4 {[%clk 0:00:02]} 42. Rh6 {[%clk 0:01:03]}  Ke7 {[%clk 0:00:02]} 43. Rf6 {[%clk 0:01:03]}  f3 {[%clk 0:00:02]} 44. Rxc6 {[%clk 0:01:00]}  Kd7 {[%clk 0:00:01]} 45. Rf6 {[%clk 0:01:01]}  Ke7 {[%clk 0:00:02]} 46. b4 {[%clk 0:00:59]}  f2 {[%clk 0:00:02]} 47. Rxf2 {[%clk 0:00:57]}  axb4 {[%clk 0:00:02]} 48. d5 {[%clk 0:00:56]}  b3 {[%clk 0:00:02]} 49. Kb2 {[%clk 0:00:56]}  Kd7 {[%clk 0:00:02]} 50. Rf7+ {[%clk 0:00:56]}  Ke8 {[%clk 0:00:02]} 51. Re7+ {[%clk 0:00:56]}  Kd8 {[%clk 0:00:02]} 52. Kxb3 {[%clk 0:00:56]}  Kxe7 {[%clk 0:00:02]} 53. a5 {[%clk 0:00:39]}  Kd7 {[%clk 0:00:03]} 54. a6 {[%clk 0:00:39]}  Kc7 {[%clk 0:00:04]} 55. Kb4 {[%clk 0:00:37]}  Kb6 {[%clk 0:00:04]} 56. d6 {[%clk 0:00:37]}  Kxa6 {[%clk 0:00:04]} 57. e6 {[%clk 0:00:37]}  Kb7 {[%clk 0:00:05]} 58. e7 {[%clk 0:00:35]}  Kc8 {[%clk 0:00:05]} 59. e8=Q+ {[%clk 0:00:35]}  Kb7 {[%clk 0:00:06]} 60. Qd7+ {[%clk 0:00:34]}  Kb6 {[%clk 0:00:05]} 61. Qb5+ {[%clk 0:00:33]}  Ka7 {[%clk 0:00:04]} 62. d7 {[%clk 0:00:32]}  Ka8 {[%clk 0:00:05]} 63. d8=Q+ {[%clk 0:00:31]}  Ka7 {[%clk 0:00:06]} 64. Qc7+ {[%clk 0:00:30]}  Ka8 {[%clk 0:00:06]} 65. Qa6# {[%clk 0:00:30]} 1-0


[Site "https://www.chess.com"]

[Event "Titled Tuesday Blitz April 25 Late 2023"]
[White "Baches Garcia, Guillermo"]
[Black "Bogaudinov, Rushan"]
[WhiteFideId "2209764"]
[BlackFideId "4129288"]
[WhiteElo "2334"]
[BlackElo "1967"]
[Result "1-0"]
[Round "04"]
[TimeControl "180+2"]
[Date "2023.04.25"]
[WhiteClock "0:00:46"]
[BlackClock "0:00:19"]

1. e4 {[%clk 0:03:00]}  c5 {[%clk 0:02:57]} 2. Nf3 {[%clk 0:03:01]}  e6 {[%clk 0:02:56]} 3. d4 {[%clk 0:03:01]}  cxd4 {[%clk 0:02:57]} 4. Nxd4 {[%clk 0:03:02]}  a6 {[%clk 0:02:58]} 5. c4 {[%clk 0:03:02]}  Nc6 {[%clk 0:02:57]} 6. Nc3 {[%clk 0:03:00]}  Bb4 {[%clk 0:02:55]} 7. Nxc6 {[%clk 0:02:53]}  dxc6 {[%clk 0:02:52]} 8. Qxd8+ {[%clk 0:02:50]}  Kxd8 {[%clk 0:02:53]} 9. Be3 {[%clk 0:02:45]}  Kc7 {[%clk 0:02:44]} 10. O-O-O {[%clk 0:02:32]}  Bxc3 {[%clk 0:02:22]} 11. bxc3 {[%clk 0:02:31]}  e5 {[%clk 0:02:15]} 12. Bc5 {[%clk 0:02:26]}  f6 {[%clk 0:02:07]} 13. Bd6+ {[%clk 0:02:13]}  Kb6 {[%clk 0:02:06]} 14. c5+ {[%clk 0:02:12]}  Ka7 {[%clk 0:02:04]} 15. Bf8 {[%clk 0:02:07]}  Bg4 {[%clk 0:01:51]} 16. Bxg7 {[%clk 0:02:00]}  Bxd1 {[%clk 0:01:51]} 17. Bxh8 {[%clk 0:01:48]}  Bh5 {[%clk 0:01:27]} 18. Bc4 {[%clk 0:01:48]}  Bg6 {[%clk 0:01:19]} 19. f3 {[%clk 0:01:41]}  h5 {[%clk 0:00:55]} 20. Rd1 {[%clk 0:01:37]}  h4 {[%clk 0:00:50]} 21. Rd7 {[%clk 0:01:28]}  h3 {[%clk 0:00:44]} 22. g4 {[%clk 0:01:02]}  Re8 {[%clk 0:00:28]} 23. Kd2 {[%clk 0:00:57]}  Re7 {[%clk 0:00:20]} 24. Rxe7 {[%clk 0:00:50]}  Nxe7 {[%clk 0:00:21]} 25. Bxf6 {[%clk 0:00:50]}  Nc8 {[%clk 0:00:19]} 26. Be6 {[%clk 0:00:46]} 1-0


[Site "https://www.chess.com"]

[Event "Titled Tuesday Blitz April 25 Late 2023"]
[White "Lorenzo De La Riva, Lazaro"]
[Black "Marchesich, Giovanni"]
[WhiteFideId "2268809"]
[BlackFideId "2824790"]
[WhiteElo "2294"]
[BlackElo "2209"]
[Result "1/2-1/2"]
[Round "04"]
[TimeControl "180+2"]
[Date "2023.04.25"]
[WhiteClock "0:00:08"]
[BlackClock "0:00:03"]

1. e4 {[%clk 0:02:58]}  e5 {[%clk 0:02:59]} 2. Nc3 {[%clk 0:02:59]}  Nf6 {[%clk 0:02:59]} 3. g3 {[%clk 0:02:59]}  Bc5 {[%clk 0:02:50]} 4. Bg2 {[%clk 0:02:59]}  c6 {[%clk 0:02:51]} 5. Nge2 {[%clk 0:02:59]}  d5 {[%clk 0:02:51]} 6. exd5 {[%clk 0:02:58]}  cxd5 {[%clk 0:02:52]} 7. d4 {[%clk 0:02:57]}  exd4 {[%clk 0:02:52]} 8. Nxd4 {[%clk 0:02:58]}  O-O {[%clk 0:02:52]} 9. O-O {[%clk 0:02:57]}  Nc6 {[%clk 0:02:51]} 10. Nxc6 {[%clk 0:02:54]}  bxc6 {[%clk 0:02:50]} 11. Na4 {[%clk 0:02:53]}  Bd6 {[%clk 0:02:47]} 12. c4 {[%clk 0:02:54]}  dxc4 {[%clk 0:02:37]} 13. Qc2 {[%clk 0:02:48]}  Be6 {[%clk 0:02:32]} 14. Rd1 {[%clk 0:02:44]}  Qc7 {[%clk 0:02:31]} 15. a3 {[%clk 0:02:09]}  Rad8 {[%clk 0:02:29]} 16. Be3 {[%clk 0:02:08]}  Bd5 {[%clk 0:02:26]} 17. Nc3 {[%clk 0:01:59]}  Bxg2 {[%clk 0:02:08]} 18. Kxg2 {[%clk 0:02:00]}  Rfe8 {[%clk 0:02:09]} 19. Ne2 {[%clk 0:01:50]}  Nd5 {[%clk 0:02:04]} 20. Bd4 {[%clk 0:01:42]}  c5 {[%clk 0:01:53]} 21. Bc3 {[%clk 0:01:14]}  Qc6 {[%clk 0:01:51]} 22. Kg1 {[%clk 0:01:14]}  Re6 {[%clk 0:01:40]} 23. Qd2 {[%clk 0:01:04]}  Bc7 {[%clk 0:01:18]} 24. Qg5 {[%clk 0:01:01]}  f6 {[%clk 0:01:14]} 25. Qg4 {[%clk 0:00:55]}  Red6 {[%clk 0:00:33]} 26. Re1 {[%clk 0:00:47]}  Nxc3 {[%clk 0:00:23]} 27. Nxc3 {[%clk 0:00:46]}  Rd4 {[%clk 0:00:23]} 28. Qh5 {[%clk 0:00:44]}  g6 {[%clk 0:00:16]} 29. Qh6 {[%clk 0:00:43]}  Be5 {[%clk 0:00:12]} 30. Re2 {[%clk 0:00:26]}  Qd7 {[%clk 0:00:05]} 31. Rae1 {[%clk 0:00:21]}  Rd2 {[%clk 0:00:03]} 32. f4 {[%clk 0:00:20]}  Rxe2 {[%clk 0:00:02]} 33. Rxe2 {[%clk 0:00:21]}  Bxc3 {[%clk 0:00:02]} 34. bxc3 {[%clk 0:00:18]}  Qd1+ {[%clk 0:00:03]} 35. Kf2 {[%clk 0:00:19]}  Rd2 {[%clk 0:00:02]} 36. Rxd2 {[%clk 0:00:18]}  Qxd2+ {[%clk 0:00:03]} 37. Kf3 {[%clk 0:00:19]}  Qxc3+ {[%clk 0:00:03]} 38. Kg4 {[%clk 0:00:19]}  Qd4 {[%clk 0:00:03]} 39. Kh3 {[%clk 0:00:13]}  c3 {[%clk 0:00:04]} 40. f5 {[%clk 0:00:12]}  Qd7 {[%clk 0:00:03]} 41. g4 {[%clk 0:00:11]}  c2 {[%clk 0:00:03]} 42. fxg6 {[%clk 0:00:10]}  Qg7 {[%clk 0:00:02]} 43. Qd2 {[%clk 0:00:09]}  Qxg6 {[%clk 0:00:02]} 44. Qd8+ {[%clk 0:00:09]}  Kg7 {[%clk 0:00:02]} 45. Qe7+ {[%clk 0:00:10]}  Qf7 {[%clk 0:00:03]} 46. Qe3 {[%clk 0:00:09]}  Qc4 {[%clk 0:00:02]} 47. Qe7+ {[%clk 0:00:09]}  Kg8 {[%clk 0:00:02]} 48. Qe8+ {[%clk 0:00:09]}  Kg7 {[%clk 0:00:03]} 49. Qe7+ {[%clk 0:00:09]}  Qf7 {[%clk 0:00:03]} 50. Qe3 {[%clk 0:00:09]}  Qc4 {[%clk 0:00:03]} 51. Qe7+ {[%clk 0:00:08]} 1/2-1/2


[Site "https://www.chess.com"]

[Event "Titled Tuesday Blitz April 25 Late 2023"]
[White "Lopez Gracia, Fernando"]
[Black "Harish, Neeraj"]
[WhiteFideId "2207184"]
[BlackFideId "30958130"]
[WhiteElo "2255"]
[BlackElo "1965"]
[Result "1/2-1/2"]
[Round "04"]
[TimeControl "180+2"]
[Date "2023.04.25"]
[WhiteClock "0:00:09"]
[BlackClock "0:00:18"]

1. Nf3 {[%clk 0:02:59]}  d5 {[%clk 0:02:59]} 2. g3 {[%clk 0:02:59]}  Nf6 {[%clk 0:03:00]} 3. Bg2 {[%clk 0:02:58]}  e6 {[%clk 0:03:00]} 4. c4 {[%clk 0:02:56]}  Be7 {[%clk 0:03:00]} 5. d4 {[%clk 0:02:56]}  O-O {[%clk 0:03:01]} 6. O-O {[%clk 0:02:57]}  dxc4 {[%clk 0:03:00]} 7. Qc2 {[%clk 0:02:54]}  a6 {[%clk 0:03:00]} 8. a4 {[%clk 0:02:51]}  Bd7 {[%clk 0:03:00]} 9. Ne5 {[%clk 0:02:49]}  Bc6 {[%clk 0:02:54]} 10. Nxc6 {[%clk 0:02:48]}  Nxc6 {[%clk 0:02:54]} 11. Bxc6 {[%clk 0:02:49]}  bxc6 {[%clk 0:02:55]} 12. Qxc4 {[%clk 0:02:49]}  Qd5 {[%clk 0:02:56]} 13. Qxd5 {[%clk 0:02:06]}  cxd5 {[%clk 0:02:54]} 14. Bf4 {[%clk 0:02:05]}  c5 {[%clk 0:02:51]} 15. dxc5 {[%clk 0:02:05]}  Bxc5 {[%clk 0:02:52]} 16. Nc3 {[%clk 0:02:04]}  Rac8 {[%clk 0:02:33]} 17. Rac1 {[%clk 0:02:04]}  d4 {[%clk 0:02:31]} 18. Na2 {[%clk 0:02:01]}  Nd5 {[%clk 0:02:28]} 19. Bd2 {[%clk 0:02:00]}  Be7 {[%clk 0:02:16]} 20. Rxc8 {[%clk 0:01:54]}  Rxc8 {[%clk 0:02:13]} 21. Rc1 {[%clk 0:01:55]}  Rxc1+ {[%clk 0:02:13]} 22. Nxc1 {[%clk 0:01:56]}  Kf8 {[%clk 0:02:08]} 23. Nd3 {[%clk 0:01:55]}  Ke8 {[%clk 0:02:07]} 24. b4 {[%clk 0:01:55]}  f6 {[%clk 0:02:03]} 25. f4 {[%clk 0:01:47]}  Kd7 {[%clk 0:02:02]} 26. Kf2 {[%clk 0:01:44]}  Bd6 {[%clk 0:01:57]} 27. Ke1 {[%clk 0:01:36]}  e5 {[%clk 0:01:57]} 28. fxe5 {[%clk 0:01:36]}  fxe5 {[%clk 0:01:58]} 29. b5 {[%clk 0:01:35]}  axb5 {[%clk 0:01:56]} 30. axb5 {[%clk 0:01:36]}  e4 {[%clk 0:01:56]} 31. Nf4 {[%clk 0:01:35]}  Nxf4 {[%clk 0:01:55]} 32. gxf4 {[%clk 0:01:31]}  Kc7 {[%clk 0:01:55]} 33. e3 {[%clk 0:01:23]}  d3 {[%clk 0:01:51]} 34. Ba5+ {[%clk 0:01:22]}  Kb7 {[%clk 0:01:52]} 35. Kd2 {[%clk 0:01:22]}  Bc7 {[%clk 0:01:47]} 36. Bb4 {[%clk 0:01:17]}  Kb6 {[%clk 0:01:46]} 37. f5 {[%clk 0:01:05]}  Kxb5 {[%clk 0:01:35]} 38. Bf8 {[%clk 0:01:06]}  Be5 {[%clk 0:01:35]} 39. h3 {[%clk 0:00:53]}  Kc4 {[%clk 0:01:34]} 40. Be7 {[%clk 0:00:49]}  Bc3+ {[%clk 0:01:25]} 41. Kd1 {[%clk 0:00:49]}  Kb3 {[%clk 0:01:26]} 42. Bc5 {[%clk 0:00:47]}  g6 {[%clk 0:01:23]} 43. fxg6 {[%clk 0:00:35]}  hxg6 {[%clk 0:01:24]} 44. Bd6 {[%clk 0:00:32]}  Kc4 {[%clk 0:01:24]} 45. Bg3 {[%clk 0:00:31]}  Kd5 {[%clk 0:01:24]} 46. Bc7 {[%clk 0:00:25]}  Ke6 {[%clk 0:01:24]} 47. Bf4 {[%clk 0:00:20]}  Kf5 {[%clk 0:01:24]} 48. Bh6 {[%clk 0:00:20]}  g5 {[%clk 0:01:19]} 49. Bf8 {[%clk 0:00:18]}  Kg6 {[%clk 0:01:16]} 50. Be7 {[%clk 0:00:15]}  Kh5 {[%clk 0:01:16]} 51. Kc1 {[%clk 0:00:16]}  Kh4 {[%clk 0:01:15]} 52. Kd1 {[%clk 0:00:16]}  Kxh3 {[%clk 0:01:13]} 53. Bxg5 {[%clk 0:00:16]}  Kg2 {[%clk 0:01:13]} 54. Bf4 {[%clk 0:00:14]}  Kf2 {[%clk 0:01:10]} 55. Bh6 {[%clk 0:00:14]}  Kf3 {[%clk 0:01:01]} 56. Bg5 {[%clk 0:00:14]}  Kg4 {[%clk 0:01:02]} 57. Bh6 {[%clk 0:00:15]}  Kf5 {[%clk 0:01:03]} 58. Bf4 {[%clk 0:00:14]}  Ke6 {[%clk 0:01:03]} 59. Bh6 {[%clk 0:00:14]}  Kd5 {[%clk 0:01:04]} 60. Bf4 {[%clk 0:00:14]}  Kc4 {[%clk 0:01:04]} 61. Bg5 {[%clk 0:00:14]}  Ba5 {[%clk 0:01:04]} 62. Bh4 {[%clk 0:00:13]}  Kb3 {[%clk 0:01:01]} 63. Bg3 {[%clk 0:00:12]}  d2 {[%clk 0:00:58]} 64. Be5 {[%clk 0:00:11]}  Bb4 {[%clk 0:00:54]} 65. Bd4 {[%clk 0:00:10]}  Bc3 {[%clk 0:00:50]} 66. Bb6 {[%clk 0:00:08]}  Kc4 {[%clk 0:00:45]} 67. Kc2 {[%clk 0:00:09]}  Bb4 {[%clk 0:00:45]} 68. Bd4 {[%clk 0:00:08]}  Ba5 {[%clk 0:00:44]} 69. Ba7 {[%clk 0:00:07]}  Kd5 {[%clk 0:00:42]} 70. Bd4 {[%clk 0:00:07]}  Ke6 {[%clk 0:00:40]} 71. Kd1 {[%clk 0:00:07]}  Kd5 {[%clk 0:00:37]} 72. Kc2 {[%clk 0:00:07]}  Ke6 {[%clk 0:00:38]} 73. Kd1 {[%clk 0:00:07]}  Kf5 {[%clk 0:00:38]} 74. Ke2 {[%clk 0:00:07]}  Kg4 {[%clk 0:00:39]} 75. Bc5 {[%clk 0:00:06]}  Bc3 {[%clk 0:00:36]} 76. Bb6 {[%clk 0:00:05]}  Kg3 {[%clk 0:00:37]} 77. Bc7+ {[%clk 0:00:05]}  Kh3 {[%clk 0:00:36]} 78. Bb6 {[%clk 0:00:06]}  Kg2 {[%clk 0:00:36]} 79. Bc5 {[%clk 0:00:06]}  Ba5 {[%clk 0:00:35]} 80. Bd4 {[%clk 0:00:06]}  Bb4 {[%clk 0:00:35]} 81. Bb6 {[%clk 0:00:06]}  Bc3 {[%clk 0:00:35]} 82. Bc5 {[%clk 0:00:07]}  Ba5 {[%clk 0:00:35]} 83. Bd4 {[%clk 0:00:07]}  Kg3 {[%clk 0:00:34]} 84. Bc5 {[%clk 0:00:08]}  Kg4 {[%clk 0:00:34]} 85. Bd4 {[%clk 0:00:09]}  Kf5 {[%clk 0:00:35]} 86. Bc5 {[%clk 0:00:09]}  Ke6 {[%clk 0:00:35]} 87. Bd4 {[%clk 0:00:08]}  Bb4 {[%clk 0:00:35]} 88. Kd1 {[%clk 0:00:09]}  Ba5 {[%clk 0:00:34]} 89. Ke2 {[%clk 0:00:09]}  Kd5 {[%clk 0:00:34]} 90. Kd1 {[%clk 0:00:09]}  Bb4 {[%clk 0:00:33]} 91. Kc2 {[%clk 0:00:10]}  Ba5 {[%clk 0:00:28]} 92. Ba7 {[%clk 0:00:10]}  Kc4 {[%clk 0:00:27]} 93. Bd4 {[%clk 0:00:10]}  Bb4 {[%clk 0:00:27]} 94. Bb6 {[%clk 0:00:10]}  Bc3 {[%clk 0:00:16]} 95. Ba7 {[%clk 0:00:09]}  Ba5 {[%clk 0:00:16]} 96. Bd4 {[%clk 0:00:08]}  Kd5 {[%clk 0:00:15]} 97. Ba7 {[%clk 0:00:08]}  Ke6 {[%clk 0:00:15]} 98. Bd4 {[%clk 0:00:07]}  Kf5 {[%clk 0:00:16]} 99. Kd1 {[%clk 0:00:08]}  Kg4 {[%clk 0:00:17]} 100. Ke2 {[%clk 0:00:09]}  Kg3 {[%clk 0:00:17]} 101. Bc5 {[%clk 0:00:09]}  Kg2 {[%clk 0:00:18]} 1/2-1/2


[Site "https://www.chess.com"]

[Event "Titled Tuesday Blitz April 25 Late 2023"]
[White "Leschinsky, Gary"]
[Black "Yeritsyan, Hayk"]
[WhiteFideId "30951321"]
[BlackFideId "13307320"]
[WhiteElo "1855"]
[BlackElo "2241"]
[Result "0-1"]
[Round "04"]
[TimeControl "180+2"]
[Date "2023.04.25"]
[WhiteClock "0:00:08"]
[BlackClock "0:00:09"]

1. c4 {[%clk 0:02:56]}  c6 {[%clk 0:02:56]} 2. d4 {[%clk 0:02:55]}  d5 {[%clk 0:02:56]} 3. Nf3 {[%clk 0:02:53]}  Nf6 {[%clk 0:02:56]} 4. Nc3 {[%clk 0:02:54]}  e6 {[%clk 0:02:56]} 5. cxd5 {[%clk 0:02:53]}  exd5 {[%clk 0:02:56]} 6. Qc2 {[%clk 0:02:54]}  Bd6 {[%clk 0:02:54]} 7. Bg5 {[%clk 0:02:54]}  Bg4 {[%clk 0:02:49]} 8. Ne5 {[%clk 0:02:51]}  Bh5 {[%clk 0:02:48]} 9. e3 {[%clk 0:02:49]}  Bg6 {[%clk 0:02:46]} 10. Nxg6 {[%clk 0:02:46]}  hxg6 {[%clk 0:02:47]} 11. h3 {[%clk 0:02:34]}  Rh5 {[%clk 0:02:39]} 12. h4 {[%clk 0:02:27]}  Nbd7 {[%clk 0:02:37]} 13. Be2 {[%clk 0:02:05]}  Rh8 {[%clk 0:02:34]} 14. O-O-O {[%clk 0:01:51]}  Qe7 {[%clk 0:02:32]} 15. Kb1 {[%clk 0:01:50]}  Qe6 {[%clk 0:02:24]} 16. Bf3 {[%clk 0:01:38]}  O-O-O {[%clk 0:02:15]} 17. Rc1 {[%clk 0:01:34]}  Kb8 {[%clk 0:02:15]} 18. Ka1 {[%clk 0:01:32]}  Nb6 {[%clk 0:02:04]} 19. Be2 {[%clk 0:01:29]}  Rde8 {[%clk 0:01:59]} 20. Bd3 {[%clk 0:01:27]}  Ne4 {[%clk 0:01:48]} 21. Bf4 {[%clk 0:01:03]}  Bxf4 {[%clk 0:01:42]} 22. exf4 {[%clk 0:01:04]}  Nxc3 {[%clk 0:01:41]} 23. bxc3 {[%clk 0:01:02]}  Qf6 {[%clk 0:01:32]} 24. g3 {[%clk 0:01:01]}  Rc8 {[%clk 0:01:27]} 25. Rhe1 {[%clk 0:00:43]}  c5 {[%clk 0:01:26]} 26. Qb2 {[%clk 0:00:43]}  c4 {[%clk 0:00:51]} 27. Bf1 {[%clk 0:00:41]}  Rhe8 {[%clk 0:00:51]} 28. Bh3 {[%clk 0:00:38]}  Rcd8 {[%clk 0:00:49]} 29. Rb1 {[%clk 0:00:35]}  Qc6 {[%clk 0:00:43]} 30. Re5 {[%clk 0:00:30]}  f6 {[%clk 0:00:40]} 31. Ree1 {[%clk 0:00:28]}  Rxe1 {[%clk 0:00:38]} 32. Rxe1 {[%clk 0:00:27]}  Re8 {[%clk 0:00:39]} 33. Qd2 {[%clk 0:00:21]}  Na4 {[%clk 0:00:22]} 34. Bg2 {[%clk 0:00:19]}  Rxe1+ {[%clk 0:00:18]} 35. Qxe1 {[%clk 0:00:20]}  Qb5 {[%clk 0:00:19]} 36. Qd2 {[%clk 0:00:14]}  a6 {[%clk 0:00:19]} 37. Bf1 {[%clk 0:00:15]}  Ka7 {[%clk 0:00:19]} 38. Be2 {[%clk 0:00:15]}  Qa5 {[%clk 0:00:17]} 39. Bf3 {[%clk 0:00:14]}  Qxc3+ {[%clk 0:00:09]} 40. Qxc3 {[%clk 0:00:13]}  Nxc3 {[%clk 0:00:10]} 41. Kb2 {[%clk 0:00:14]}  Na4+ {[%clk 0:00:08]} 42. Kc2 {[%clk 0:00:14]}  Nb6 {[%clk 0:00:08]} 43. g4 {[%clk 0:00:14]}  Kb8 {[%clk 0:00:08]} 44. g5 {[%clk 0:00:14]}  f5 {[%clk 0:00:07]} 45. h5 {[%clk 0:00:13]}  gxh5 {[%clk 0:00:08]} 46. Bxh5 {[%clk 0:00:14]}  Nc8 {[%clk 0:00:08]} 47. Bf7 {[%clk 0:00:11]}  Ne7 {[%clk 0:00:08]} 48. Kc3 {[%clk 0:00:11]}  Kc7 {[%clk 0:00:09]} 49. Kb4 {[%clk 0:00:12]}  Kc6 {[%clk 0:00:09]} 50. a4 {[%clk 0:00:12]}  b6 {[%clk 0:00:09]} 51. a5 {[%clk 0:00:13]}  b5 {[%clk 0:00:09]} 52. Be6 {[%clk 0:00:12]}  Kd6 {[%clk 0:00:09]} 53. Bf7 {[%clk 0:00:13]}  Nc6+ {[%clk 0:00:09]} 54. Kc3 {[%clk 0:00:13]}  Nxa5 {[%clk 0:00:10]} 55. Bg6 {[%clk 0:00:12]}  Ke6 {[%clk 0:00:09]} 56. Be8 {[%clk 0:00:12]}  Nb7 {[%clk 0:00:08]} 57. Bc6 {[%clk 0:00:13]}  Nd8 {[%clk 0:00:07]} 58. Be8 {[%clk 0:00:13]}  Kd6 {[%clk 0:00:06]} 59. Kb4 {[%clk 0:00:13]}  Nc6+ {[%clk 0:00:06]} 60. Kc3 {[%clk 0:00:13]}  g6 {[%clk 0:00:07]} 61. Bxg6 {[%clk 0:00:13]}  b4+ {[%clk 0:00:07]} 62. Kc2 {[%clk 0:00:13]}  Nxd4+ {[%clk 0:00:08]} 63. Kd2 {[%clk 0:00:13]}  Ne6 {[%clk 0:00:08]} 64. Bxf5 {[%clk 0:00:13]}  Nxf4 {[%clk 0:00:09]} 65. g6 {[%clk 0:00:14]}  Ke7 {[%clk 0:00:09]} 66. Ke3 {[%clk 0:00:11]}  Nh5 {[%clk 0:00:08]} 67. Bc8 {[%clk 0:00:10]}  a5 {[%clk 0:00:08]} 68. f4 {[%clk 0:00:11]}  Kf6 {[%clk 0:00:08]} 69. f5 {[%clk 0:00:11]}  Ng7 {[%clk 0:00:08]} 70. Kd2 {[%clk 0:00:12]}  d4 {[%clk 0:00:08]} 71. Kc2 {[%clk 0:00:11]}  d3+ {[%clk 0:00:08]} 72. Kd2 {[%clk 0:00:11]}  b3 {[%clk 0:00:09]} 73. Ba6 {[%clk 0:00:08]}  b2 {[%clk 0:00:09]} 0-1


[Site "https://www.chess.com"]

[Event "Titled Tuesday Blitz April 25 Late 2023"]
[White "Shapiro, Viktor"]
[Black "Smith, Garrett L"]
[WhiteFideId "4175700"]
[BlackFideId "2024829"]
[WhiteElo "2152"]
[BlackElo "2047"]
[Result "0-1"]
[Round "04"]
[TimeControl "180+2"]
[Date "2023.04.25"]
[WhiteClock "0:00:08"]
[BlackClock "0:00:11"]

1. c4 {[%clk 0:03:00]}  c5 {[%clk 0:03:00]} 2. Nc3 {[%clk 0:02:59]}  Nc6 {[%clk 0:03:00]} 3. g3 {[%clk 0:02:51]}  e5 {[%clk 0:03:00]} 4. Bg2 {[%clk 0:02:51]}  Nf6 {[%clk 0:03:00]} 5. e3 {[%clk 0:02:51]}  d6 {[%clk 0:02:55]} 6. Nge2 {[%clk 0:02:50]}  Be6 {[%clk 0:02:55]} 7. Nd5 {[%clk 0:02:50]}  Be7 {[%clk 0:02:53]} 8. Nec3 {[%clk 0:02:50]}  O-O {[%clk 0:02:51]} 9. d3 {[%clk 0:02:48]}  a6 {[%clk 0:02:49]} 10. O-O {[%clk 0:02:43]}  Rb8 {[%clk 0:02:47]} 11. a4 {[%clk 0:02:41]}  Nb4 {[%clk 0:02:42]} 12. h3 {[%clk 0:02:35]}  Nfxd5 {[%clk 0:02:25]} 13. cxd5 {[%clk 0:02:35]}  Bd7 {[%clk 0:02:22]} 14. f4 {[%clk 0:02:23]}  Qc8 {[%clk 0:02:16]} 15. g4 {[%clk 0:02:22]}  b5 {[%clk 0:02:13]} 16. axb5 {[%clk 0:02:21]}  axb5 {[%clk 0:02:13]} 17. fxe5 {[%clk 0:02:20]}  dxe5 {[%clk 0:02:13]} 18. Qe2 {[%clk 0:01:44]}  c4 {[%clk 0:01:58]} 19. dxc4 {[%clk 0:01:38]}  bxc4 {[%clk 0:01:56]} 20. Rd1 {[%clk 0:01:25]}  Bc5 {[%clk 0:01:53]} 21. Kh1 {[%clk 0:01:19]}  Nd3 {[%clk 0:01:48]} 22. Be4 {[%clk 0:01:13]}  f5 {[%clk 0:01:31]} 23. Bxd3 {[%clk 0:00:54]}  cxd3 {[%clk 0:01:32]} 24. Qxd3 {[%clk 0:00:55]}  fxg4 {[%clk 0:01:29]} 25. Qe4 {[%clk 0:00:28]}  gxh3 {[%clk 0:01:16]} 26. Qxe5 {[%clk 0:00:28]}  Bg4 {[%clk 0:01:07]} 27. Rg1 {[%clk 0:00:24]}  Rb6 {[%clk 0:00:57]} 28. Ne4 {[%clk 0:00:20]}  Rg6 {[%clk 0:00:51]} 29. Kh2 {[%clk 0:00:15]}  Re8 {[%clk 0:00:47]} 30. Qf4 {[%clk 0:00:13]}  Rxe4 {[%clk 0:00:42]} 31. Qxe4 {[%clk 0:00:13]}  Bd6+ {[%clk 0:00:42]} 32. Kh1 {[%clk 0:00:12]}  Bf5 {[%clk 0:00:31]} 33. Qf3 {[%clk 0:00:12]}  Rf6 {[%clk 0:00:19]} 34. e4 {[%clk 0:00:10]}  Bg6 {[%clk 0:00:18]} 35. Qg4 {[%clk 0:00:08]}  Qc2 {[%clk 0:00:14]} 36. Qxh3 {[%clk 0:00:07]}  Bxe4+ {[%clk 0:00:13]} 37. Rg2 {[%clk 0:00:08]}  Rf1# {[%clk 0:00:11]} 0-1


[Site "https://www.chess.com"]